{"text_format":"2","workbook":"xlsx","n_sheets":3,"sheets":["Лист1","Лист2","Лист3"],"not_rendered":{"charts":0,"images":0,"macros":0,"external_links":0,"defined_names":0,"comments":0,"pivot_tables":0},"unopened":[],"bounds":{"document_bytes":16777216,"sheet_cells":100000,"run_cost":"one","rows_first":2000,"rows_last":500,"rows_between":2000,"halvings":0,"cell_chars":16384,"cell_head_chars":4096},"cells_cut":0,"cells_raw":0,"read":"whole","date_system":"1900"}

{"sheet":"Лист1","index":0,"n_rows":13,"n_cols":68,"rows_kept":13,"cut":false,"hidden":false,"merged":[[3,55,4,56],[3,61,4,62],[3,67,4,67],[0,0,0,20],[1,0,1,20],[2,0,2,20],[3,50,4,50],[3,53,4,54],[3,35,4,36],[3,43,4,44],[3,3,4,4],[3,7,4,8],[3,42,4,42],[3,5,4,6],[3,63,4,63],[3,64,4,65],[3,52,4,52],[3,60,4,60],[3,15,4,16],[3,11,4,12],[3,9,4,10],[3,13,4,14],[3,19,4,20],[3,17,4,18],[3,22,4,22],[3,23,4,23],[3,58,4,58],[3,59,4,59],[3,40,4,40],[3,41,4,41],[3,33,4,34],[3,32,4,32],[3,45,4,46],[3,47,4,48],[3,51,4,51],[3,30,4,31],[3,24,4,25],[3,28,4,29],[3,26,4,27],[3,37,4,38]]}
["Отчет о результатах мониторинга качества финансового менеджмента,"]
["осуществляемого главными администраторами средств районного бюджета"]
["Шарангского муниципального  района за 2013год"]
["№","Наименование главного администратора средств районного бюджета","КВСР","1.1. Своевре - менность представления предвари -тельного (планового) реестра расходных обязательств",null,"1.2. Полнота информации о расходных обязательс-твах",null,"1.3. Сроки представления обоснований бюджетных ассигнований на очередной финансовый год",null,"1.4.  Охват в обоснованиях бюджетных ассигнований на очередной финансовый год показателями непосредственных результатов (пояснительными записками) сумм ассигнований, доведенных Управлением финансов администрации Шарангского района в качестве предельных объемов ассигнований в ходе составления проекта районного бюджета",null,"1.5 Доля бюджетных ассигнований, представленных в программном виде",null,"1.6. Доля бюджетных ассигнований  на предоставление муниципальных услуг в виде субсидий на выполнение муниципальных заданий",null,"1.7.1.  Качество планирования расходов: сумма положительных внесенных изменений в бюджетную роспись в связи с уточнением ассигнований по решению Земского собрания Шарангского района о районном бюджете",null,"1.7. 2. Качество планирования расходов: сумма отрицательных внесенных изменений в бюджетную роспись в связи с уточнением ассигнований по решению Земского собрания Шарангского района о районном бюджете",null,"1.8.  Качество планирования расходов: сумма внесенных положительных изменений в бюджетную роспись в связи с передвижками между кодами бюджетной классификации",null,"1. Финансовое планирование","Наименование главного администратора средств районного бюджета","КВСР","2.1. Кассовое исполнение расходов",null,"2.2. Равномер- ность осуществляемых расходов в отчетном фин. году",null,"2.3. Кассовое исполнение районных целевых программ ГРБС",null,"2.4. Своевремен-ность принятия  бюджетных обязательств",null,"2.7. Качество исполнения расходов: наличие просрочен - ной кредиторс-кой задолжен-ности","2.8. Уровень подготовки платежных документов",null,"2.9. Уровень  использования субсидий бюджетными  и автономными учреждениями, предоставленных на  выполнение муниципальных заданий",null,"2.10.Равномерность расходов, осуществляемых бюджетными и автономными уч-ми на выполнение муниципальных заданий",null,"2.Исполнение бюджета в части расходов","Наименование главного администратора средств районного бюджета","КВСР","3.1. Качество правовой базы главного администра-тора доходов районного бюджета по администри-рованию доходов","3.2.  Полнота зачисления   платежей в районный бюджет по главному администра -тору доходов районного бюджета, объем невыясненных поступлений",null,"3.3. Отклонение кассового исполнения по доходам от прогноза по главному администратору доходов районного бюджета",null,"3.4. Эффективность управления дебиторской задолженностью по расчетам с дебиторами по доходам ",null,"3.Исполнение бюджета в части доходов","4.1. Методи - ческие рекоменда- ции (указания) ГРБС по реализации муниципальной учетной политики","4.2. Подготовка и внедрение управленческого учета ","4.3. Степень реализации ведомственного плана повышения эффективности бюджетных расходов","4.4. Динамика объема материальных запасов",null,"4.5.Коэффициент сложности бюджетных ассигнований",null,"4. Учет и отчетность","Наименование главного администратора средств районного бюджета","КВСР","5.1. Осуществление мероприятий внутреннего  контроля","5.2. Доля  недостач и хищений денежных средств и материальных ценностей",null,"5.Контроль и аудит","6.1.Качество исполнения бюджетных обязательств",null,"6.Исполнение судебных актов","ВСЕГО"]
["п\\п"]
[null,null,null,"Показатель","баллы","Показатель","баллы","Показатель","баллы","%","баллы","%","баллы","%","баллы","%","баллы","%","баллы","%","баллы","баллы",null,null,"%","баллы","%","баллы","%","баллы","%","баллы","баллы","%","баллы","%","баллы","%","баллы","баллы",null,null,"баллы","%","баллы","%","баллы","%","баллы","баллы","баллы","баллы","баллы","%","баллы","%","баллы","баллы",null,null,"баллы","%","баллы","баллы","%","баллы","баллы","Количество баллов"]
[null,"1 группа",{"$nulls":20},"1 группа",{"$nulls":17},"1 группа",{"$nulls":17},"1 группа"]
[1,"Районный отдел образования","074",0,5,0,5,0,5,100,5,1.1000000000000001,1,86.5,2,97.7,1,99.3,1,98.3,1,{"$f":"SUM(E8+G8+I8+K8+M8+O8+Q8+S8+U8)","v":26},"Районный отдел образования","074",100,2,0,5,100,1,93.4,10,10,91.2,1,98.1,1,47,5,{"$f":"SUM(Z8+AB8+AD8+AF8+AG8+AI8+AK8+AM8)","v":35},"Районный отдел образования","074","8",0,5,0,0,0,10,{"$f":"SUM(AQ8+AS8+AU8+AW8)","v":23},10,5,0,125.8,5,1085,2,{"$f":"SUM(AY8+AZ8+BA8+BC8+BE8)","v":22},"Районный отдел образования","074",5,0,5,{"$f":"SUM(BI8+BK8)","v":10},100,10,{"$f":"SUM(BN8)","v":10},{"$f":"SUM(V8+AN8+AX8+BF8+BL8+BO8)","v":126}]
[2,"Отдел культуры","057",0,5,0,5,0,5,100,5,1.6,2,85.7,1,98.2,2,99.9,2,99.7,2,{"$f":"SUM(E9+G9+I9+K9+M9+O9+Q9+S9+U9)","v":29},"Отдел культуры","057",99.9,1,12.8,5,100,1,60.7,7,10,97.9,2,98.2,2,30.9,5,{"$f":"SUM(Z9+AB9+AD9+AF9+AG9+AI9+AK9+AM9)","v":33},"Отдел культуры","057","8",0,5,-32.9,0,0,10,{"$f":"SUM(AQ9+AS9+AU9+AW9)","v":23},10,5,0,0,10,560,1,{"$f":"SUM(AY9+AZ9+BA9+BC9+BE9)","v":26},"Отдел культуры","057",5,0,5,{"$f":"SUM(BI9+BK9)","v":10},100,10,{"$f":"SUM(BN9)","v":10},{"$f":"SUM(V9+AN9+AX9+BF9+BL9+BO9)","v":131}]
[null,"2 группа",{"$nulls":20},"2 группа",{"$nulls":17},"2 группа",{"$nulls":17},"2 группа"]
[1,"Администрация",487,0,5,0,5,0,5,100,5,8.1999999999999993,3,null,null,78.599999999999994,1,87.6,1,94.3,1,26,"Администрация",487,89.4,1,133.6,0,99.5,2,100,10,10,93.3,1,{"$nulls":4},24,"Администрация",487,"8",0,5,-18.75,0,0,10,{"$f":"SUM(AQ11+AS11+AU11+AW11)","v":23},10,5,0,0,10,39.5,1,{"$f":"SUM(AY11+AZ11+BA11+BC11+BE11)","v":26},"Администрация",487,5,0,5,10,100,10,10,119]
[2,"Управление сельского хозяйства","082",0,5,0,5,0,5,100,5,3.5,2,null,null,100,3,99.6,3,99.4,2,30,"Управление сельского хозяйства","082",100,3,-41.3,10,100,3,100,10,10,94,2,{"$nulls":4},38,"Управление сельского хозяйства","082","8",0,5,0,0,0,10,{"$f":"SUM(AQ12+AS12+AU12+AW12)","v":23},10,5,0,533.29999999999995,0,77,2,{"$f":"SUM(AY12+AZ12+BA12+BC12+BE12)","v":17},"Управление сельского хозяйства","082",5,0,5,10,100,10,10,128]
[3,"Управление финансов","001",0,5,0,5,0,5,100,5,2,1,null,null,93.4,2,96.5,2,99.4,2,27,"Управление финансов","001",97.8,2,-39.700000000000003,10,99.2,1,99.2,10,10,99.7,3,{"$nulls":4},36,"Управление финансов","001","8",0,5,-16.07,0,0,10,{"$f":"SUM(AQ13+AS13+AU13+AW13)","v":23},10,5,0,90,10,85.9,3,{"$f":"SUM(AY13+AZ13+BA13+BC13+BE13)","v":28},"Управление финансов","001",5,0,5,10,100,10,10,134]

{"sheet":"Лист2","index":1,"n_rows":0,"n_cols":0,"rows_kept":0,"cut":false,"hidden":false,"merged":[]}

{"sheet":"Лист3","index":2,"n_rows":0,"n_cols":0,"rows_kept":0,"cut":false,"hidden":false,"merged":[]}